[Event "*** Titled Tuesday Blitz"]
[Site "Chess.com"]
[Date "2020.12.01"]
[Round "3"]
[White "Sviridov_Valery"]
[Black "fyall777"]
[Result "1-0"]
[WhiteElo "2910"]
[BlackElo "2277"]
[TimeControl "180+1"]
[EndTime "10:26:18 PST"]
[Termination "Sviridov_Valery won by resignation"]

1. Nf3 {[%clk 0:03:00.9]} 1... f5 {[%clk 0:02:58.8]} 2. d3 {[%clk 0:02:59.2]}
2... Nf6 {[%clk 0:02:58.5]} 3. e4 {[%clk 0:02:58.9]} 3... e6 {[%clk 0:02:57.3]}
4. exf5 {[%clk 0:02:57.5]} 4... exf5 {[%clk 0:02:56.5]} 5. d4 {[%clk 0:02:58.3]}
5... d5 {[%clk 0:02:45.9]} 6. Bd3 {[%clk 0:02:57.2]} 6... Bd6 {[%clk 0:02:45.5]}
7. O-O {[%clk 0:02:57.5]} 7... O-O {[%clk 0:02:45.3]} 8. Ne5 {[%clk 0:02:58]}
8... Nc6 {[%clk 0:02:42.4]} 9. Nxc6 {[%clk 0:02:43.3]} 9... bxc6 {[%clk
0:02:41.9]} 10. Nd2 {[%clk 0:02:44.2]} 10... Ne4 {[%clk 0:02:35.3]} 11. Nf3
{[%clk 0:02:38.7]} 11... Qf6 {[%clk 0:02:32.2]} 12. c4 {[%clk 0:02:36.3]} 12...
Be6 {[%clk 0:02:29.1]} 13. c5 {[%clk 0:02:35.8]} 13... Be7 {[%clk 0:02:23.8]}
14. Qa4 {[%clk 0:02:35.7]} 14... Bf7 {[%clk 0:02:13.3]} 15. Bf4 {[%clk
0:02:34.8]} 15... Bh5 {[%clk 0:02:00.4]} 16. Ne5 {[%clk 0:02:33.9]} 16... g5
{[%clk 0:01:54.8]} 17. Nd7 {[%clk 0:02:23.2]} 17... Qf7 {[%clk 0:01:29.8]} 18.
Be5 {[%clk 0:02:18.7]} 18... Rfd8 {[%clk 0:01:09.2]} 19. Qxc6 {[%clk 0:02:18.1]}
19... Qe8 {[%clk 0:01:09.3]} 20. f3 {[%clk 0:02:07.9]} 20... Qxd7 {[%clk
0:00:36.2]} 21. Qxd7 {[%clk 0:02:07.5]} 21... Rxd7 {[%clk 0:00:36.5]} 22. fxe4
{[%clk 0:02:08.4]} 22... fxe4 {[%clk 0:00:36]} 23. Bb5 {[%clk 0:02:08.1]} 23...
Rdd8 {[%clk 0:00:35.7]} 24. Bxc7 {[%clk 0:02:08]} 24... Rdc8 {[%clk 0:00:30.6]}
25. Bc6 {[%clk 0:02:07.9]} 25... Rxc7 {[%clk 0:00:20.1]} 26. Bxd5+ {[%clk
0:02:07.6]} 26... Kg7 {[%clk 0:00:20.7]} 27. Bxa8 {[%clk 0:02:08]} 27... Bf6
{[%clk 0:00:21.1]} 28. Rxf6 {[%clk 0:02:00.6]} 28... Kxf6 {[%clk 0:00:20.5]} 29.
Bxe4 {[%clk 0:02:01.3]} 29... Re7 {[%clk 0:00:19.4]} 30. Re1 {[%clk 0:01:56.2]}
30... Kg7 {[%clk 0:00:14.1]} 31. d5 {[%clk 0:01:53.8]} 31... Bg6 {[%clk
0:00:14.3]} 32. d6 {[%clk 0:01:54.2]} 32... Rxe4 {[%clk 0:00:14.5]} 33. Rxe4
{[%clk 0:01:54.1]} 33... Bxe4 {[%clk 0:00:14.8]} 34. d7 {[%clk 0:01:55]} 1-0

[Event "*** Titled Tuesday Blitz"]
[Site "Chess.com"]
[Date "2020.12.01"]
[Round "3"]
[White "Enriquack"]
[Black "Joel1285"]
[Result "1-0"]
[WhiteElo "2275"]
[BlackElo "1829"]
[TimeControl "180+1"]
[EndTime "10:26:22 PST"]
[Termination "Enriquack won by resignation"]

1. e4 {[%clk 0:03:00.9]} 1... c5 {[%clk 0:02:59.9]} 2. Nf3 {[%clk 0:03:00.6]}
2... Nc6 {[%clk 0:02:59.8]} 3. Bb5 {[%clk 0:03:00.9]} 3... g6 {[%clk 0:02:59.2]}
4. O-O {[%clk 0:03:00.5]} 4... Bg7 {[%clk 0:02:59.1]} 5. d3 {[%clk 0:03:00.9]}
5... Nf6 {[%clk 0:02:57.9]} 6. Bxc6 {[%clk 0:02:57.4]} 6... dxc6 {[%clk
0:02:57.7]} 7. Qe1 {[%clk 0:02:55.1]} 7... O-O {[%clk 0:02:54.1]} 8. e5 {[%clk
0:02:48.8]} 8... Ne8 {[%clk 0:02:51.5]} 9. Nbd2 {[%clk 0:02:41.8]} 9... Nc7
{[%clk 0:02:51.3]} 10. a4 {[%clk 0:02:40.4]} 10... Ne6 {[%clk 0:02:45.6]} 11.
Nb3 {[%clk 0:02:34.5]} 11... b6 {[%clk 0:02:43.5]} 12. a5 {[%clk 0:02:33.9]}
12... Nd4 {[%clk 0:02:02.6]} 13. Nfxd4 {[%clk 0:02:22.9]} 13... cxd4 {[%clk
0:02:03.5]} 14. axb6 {[%clk 0:02:23.5]} 14... Qxb6 {[%clk 0:02:02.1]} 15. Qe4
{[%clk 0:01:49.3]} 15... Be6 {[%clk 0:02:00.8]} 16. Nxd4 {[%clk 0:01:44.7]}
16... Bd5 {[%clk 0:01:45]} 17. Qf4 {[%clk 0:01:40.2]} 17... f6 {[%clk 0:01:22]}
18. Ne2 {[%clk 0:01:30]} 18... fxe5 {[%clk 0:01:15.5]} 19. Qe3 {[%clk
0:01:30.1]} 19... Rab8 {[%clk 0:00:26.2]} 20. Rxa7 {[%clk 0:01:20.3]} 20... Qxe3
{[%clk 0:00:18.3]} 21. fxe3 {[%clk 0:01:20]} 21... Rxf1+ {[%clk 0:00:18.8]} 22.
Kxf1 {[%clk 0:01:20.9]} 1-0

[Event "*** Titled Tuesday Blitz"]
[Site "Chess.com"]
[Date "2020.12.01"]
[Round "3"]
[White "Orest_Vovk"]
[Black "pavelalexandru07"]
[Result "1-0"]
[WhiteElo "2552"]
[BlackElo "2341"]
[TimeControl "180+1"]
[EndTime "10:26:23 PST"]
[Termination "Orest_Vovk won by resignation"]

1. h3 {[%clk 0:03:00.9]} 1... g6 {[%clk 0:02:59.5]} 2. Nc3 {[%clk 0:02:59.8]}
2... Bg7 {[%clk 0:03:00.4]} 3. e4 {[%clk 0:03:00.1]} 3... d6 {[%clk 0:02:59.9]}
4. Nf3 {[%clk 0:02:59.6]} 4... Nf6 {[%clk 0:03:00.4]} 5. Bc4 {[%clk 0:02:59.3]}
5... O-O {[%clk 0:03:00.7]} 6. d3 {[%clk 0:02:59.6]} 6... e5 {[%clk 0:03:00.8]}
7. O-O {[%clk 0:02:59.6]} 7... Be6 {[%clk 0:03:01.1]} 8. Bxe6 {[%clk 0:02:58.4]}
8... fxe6 {[%clk 0:03:02]} 9. Ng5 {[%clk 0:02:58.5]} 9... Qe7 {[%clk 0:03:00]}
10. f4 {[%clk 0:02:58.4]} 10... Nbd7 {[%clk 0:02:59.3]} 11. fxe5 {[%clk
0:02:56.9]} 11... dxe5 {[%clk 0:02:56.5]} 12. Be3 {[%clk 0:02:55.5]} 12... c6
{[%clk 0:02:55]} 13. Qe2 {[%clk 0:02:54.5]} 13... Nh5 {[%clk 0:02:46.5]} 14. Qg4
{[%clk 0:02:49.6]} 14... Rae8 {[%clk 0:02:39]} 15. Rxf8+ {[%clk 0:02:45.5]}
15... Bxf8 {[%clk 0:02:28.5]} 16. Bxa7 {[%clk 0:02:40.3]} 16... c5 {[%clk
0:02:19]} 17. Nb5 {[%clk 0:02:27.8]} 17... Nhf6 {[%clk 0:01:47.1]} 18. Qh4
{[%clk 0:02:10.6]} 18... Qd8 {[%clk 0:01:46.5]} 19. Rf1 {[%clk 0:01:53.5]} 19...
Qa5 {[%clk 0:01:40.5]} 20. c4 {[%clk 0:01:43.1]} 20... h6 {[%clk 0:01:17.6]} 21.
Nf3 {[%clk 0:01:35.9]} 21... Kg7 {[%clk 0:01:09.7]} 22. Nxe5 {[%clk 0:01:32.6]}
22... g5 {[%clk 0:01:06.6]} 23. Qf2 {[%clk 0:01:30]} 23... Re7 {[%clk
0:00:35.2]} 24. Bb8 {[%clk 0:01:19.1]} 1-0

[Event "*** Titled Tuesday Blitz"]
[Site "Chess.com"]
[Date "2020.12.01"]
[Round "3"]
[White "Stormeman100100"]
[Black "Funo09"]
[Result "0-1"]
[WhiteElo "2513"]
[BlackElo "2755"]
[TimeControl "180+1"]
[EndTime "10:26:24 PST"]
[Termination "Funo09 won by checkmate"]

1. e4 {[%clk 0:03:00.9]} 1... c5 {[%clk 0:02:23.1]} 2. Nf3 {[%clk 0:02:59.1]}
2... d6 {[%clk 0:02:23.2]} 3. d4 {[%clk 0:02:58.8]} 3... cxd4 {[%clk 0:02:24.1]}
4. Nxd4 {[%clk 0:02:59.5]} 4... Nf6 {[%clk 0:02:25]} 5. Nc3 {[%clk 0:02:59.4]}
5... a6 {[%clk 0:02:25.4]} 6. f3 {[%clk 0:02:58.8]} 6... Nbd7 {[%clk 0:02:23]}
7. Be3 {[%clk 0:02:57.2]} 7... g6 {[%clk 0:02:23.4]} 8. Qd2 {[%clk 0:02:56.8]}
8... h5 {[%clk 0:02:23]} 9. Be2 {[%clk 0:02:51.8]} 9... Bg7 {[%clk 0:02:22.5]}
10. O-O {[%clk 0:02:47.8]} 10... O-O {[%clk 0:02:22.9]} 11. f4 {[%clk
0:02:47.3]} 11... b5 {[%clk 0:02:22.4]} 12. Nc6 {[%clk 0:02:30.2]} 12... Qe8
{[%clk 0:02:21.5]} 13. e5 {[%clk 0:02:25.7]} 13... dxe5 {[%clk 0:02:16.2]} 14.
fxe5 {[%clk 0:02:24.4]} 14... Ng4 {[%clk 0:02:15.6]} 15. Bxg4 {[%clk 0:02:20.8]}
15... hxg4 {[%clk 0:02:16.5]} 16. Nd5 {[%clk 0:01:09.1]} 16... Nxe5 {[%clk
0:02:12.9]} 17. Nxe5 {[%clk 0:00:40.7]} 17... Bxe5 {[%clk 0:02:13.8]} 18. Bh6
{[%clk 0:00:41.1]} 18... Bb7 {[%clk 0:01:42.1]} 19. Bxf8 {[%clk 0:00:39.6]}
19... Qxf8 {[%clk 0:01:43]} 20. Rae1 {[%clk 0:00:37.9]} 20... Bd6 {[%clk
0:01:43.3]} 21. Ne3 {[%clk 0:00:31.3]} 21... Qh6 {[%clk 0:01:40.8]} 22. g3
{[%clk 0:00:28.6]} 22... Bxg3 {[%clk 0:01:38.9]} 23. Re2 {[%clk 0:00:13.6]}
23... Bf4 {[%clk 0:01:34.7]} 24. Qd4 {[%clk 0:00:10.1]} 24... Bf3 {[%clk
0:01:31.1]} 25. Ree1 {[%clk 0:00:07.6]} 25... Qxh2# {[%clk 0:01:30.2]} 0-1

[Event "*** Titled Tuesday Blitz"]
[Site "Chess.com"]
[Date "2020.12.01"]
[Round "3"]
[White "Kolle05"]
[Black "anon219"]
[Result "0-1"]
[WhiteElo "2437"]
[BlackElo "2763"]
[TimeControl "180+1"]
[EndTime "10:26:28 PST"]
[Termination "anon219 won by resignation"]

1. e4 {[%clk 0:03:00.9]} 1... c5 {[%clk 0:02:54.7]} 2. Nf3 {[%clk 0:03:00.1]}
2... a6 {[%clk 0:02:54.5]} 3. c3 {[%clk 0:02:42.1]} 3... e6 {[%clk 0:02:47.2]}
4. d4 {[%clk 0:02:39.3]} 4... d5 {[%clk 0:02:47.5]} 5. exd5 {[%clk 0:02:38.1]}
5... exd5 {[%clk 0:02:48.4]} 6. Bd3 {[%clk 0:02:36.9]} 6... c4 {[%clk
0:02:48.8]} 7. Bc2 {[%clk 0:02:36.1]} 7... Bd6 {[%clk 0:02:49.5]} 8. O-O {[%clk
0:02:34.9]} 8... Ne7 {[%clk 0:02:49.8]} 9. b3 {[%clk 0:02:11.5]} 9... cxb3
{[%clk 0:02:49.6]} 10. axb3 {[%clk 0:02:09.3]} 10... O-O {[%clk 0:02:50.2]} 11.
c4 {[%clk 0:02:08.1]} 11... Nbc6 {[%clk 0:02:49.3]} 12. Nc3 {[%clk 0:02:07]}
12... h6 {[%clk 0:02:44.1]} 13. Bb1 {[%clk 0:01:57]} 13... Bg4 {[%clk
0:02:40.1]} 14. cxd5 {[%clk 0:01:42.4]} 14... Nb4 {[%clk 0:02:38.6]} 15. Ba3
{[%clk 0:01:42.2]} 15... Nbxd5 {[%clk 0:02:33.6]} 16. Nxd5 {[%clk 0:01:40]}
16... Nxd5 {[%clk 0:02:34.5]} 17. Qd3 {[%clk 0:01:36]} 17... Nf6 {[%clk
0:02:31]} 18. Ne5 {[%clk 0:01:29.2]} 18... Be6 {[%clk 0:02:28.8]} 19. Re1 {[%clk
0:01:08.2]} 19... Bxa3 {[%clk 0:02:26.7]} 20. Rxa3 {[%clk 0:01:09.1]} 20... Qd6
{[%clk 0:02:26.2]} 21. Ra1 {[%clk 0:00:27.6]} 21... Rfd8 {[%clk 0:02:25.7]} 22.
Rd1 {[%clk 0:00:26.9]} 22... Rac8 {[%clk 0:02:22.2]} 23. Bc2 {[%clk 0:00:17.7]}
23... Qb4 {[%clk 0:02:21.6]} 24. Rac1 {[%clk 0:00:16.5]} 24... Kf8 {[%clk
0:02:12.6]} 25. h3 {[%clk 0:00:11.7]} 25... Rc3 {[%clk 0:02:11.6]} 26. Qd2
{[%clk 0:00:10.8]} 26... Rdc8 {[%clk 0:02:06.3]} 27. Bd3 {[%clk 0:00:04.4]}
27... Qxb3 {[%clk 0:01:56.2]} 28. Rxc3 {[%clk 0:00:03.9]} 28... Qxc3 {[%clk
0:01:55.8]} 29. Qe3 {[%clk 0:00:01.5]} 29... Qb3 {[%clk 0:01:50.9]} 30. Qg3
{[%clk 0:00:01.2]} 0-1

[Event "*** Titled Tuesday Blitz"]
[Site "Chess.com"]
[Date "2020.12.01"]
[Round "3"]
[White "Durarbayli"]
[Black "plumalka"]
[Result "1/2-1/2"]
[WhiteElo "2755"]
[BlackElo "2494"]
[TimeControl "180+1"]
[EndTime "10:26:30 PST"]
[Termination "Game drawn by repetition"]

1. e4 {[%clk 0:03:00.9]} 1... c5 {[%clk 0:03:00]} 2. b3 {[%clk 0:03:00.8]} 2...
Nc6 {[%clk 0:02:57.6]} 3. Bb2 {[%clk 0:03:00.1]} 3... e5 {[%clk 0:02:57.1]} 4.
Bc4 {[%clk 0:02:59.4]} 4... g6 {[%clk 0:02:55]} 5. Ne2 {[%clk 0:02:55.4]} 5...
Bg7 {[%clk 0:02:54.7]} 6. O-O {[%clk 0:02:53.2]} 6... Nge7 {[%clk 0:02:54.9]} 7.
f4 {[%clk 0:02:45.2]} 7... O-O {[%clk 0:02:50.5]} 8. f5 {[%clk 0:02:07.3]} 8...
gxf5 {[%clk 0:02:50.3]} 9. exf5 {[%clk 0:02:08.2]} 9... Nxf5 {[%clk 0:02:47]}
10. Nbc3 {[%clk 0:01:39.1]} 10... Nd6 {[%clk 0:02:31.9]} 11. Ng3 {[%clk
0:01:36.2]} 11... Nxc4 {[%clk 0:02:29.8]} 12. bxc4 {[%clk 0:01:37.1]} 12... Nd4
{[%clk 0:02:27.6]} 13. Nd5 {[%clk 0:01:20.8]} 13... d6 {[%clk 0:02:22]} 14. Bxd4
{[%clk 0:01:20.5]} 14... exd4 {[%clk 0:02:15.7]} 15. Nf5 {[%clk 0:01:21]} 15...
Bxf5 {[%clk 0:02:09.4]} 16. Rxf5 {[%clk 0:01:21.9]} 16... d3 {[%clk 0:02:07]}
17. c3 {[%clk 0:01:12.4]} 17... Qh4 {[%clk 0:02:06.4]} 18. Rf4 {[%clk
0:01:10.5]} 18... Qh6 {[%clk 0:02:03.9]} 19. Qf3 {[%clk 0:01:00.4]} 19... Be5
{[%clk 0:01:56.7]} 20. Rg4+ {[%clk 0:00:23.6]} 20... Kh8 {[%clk 0:01:55.4]} 21.
g3 {[%clk 0:00:24.1]} 21... Qxd2 {[%clk 0:01:39.6]} 22. Rd1 {[%clk 0:00:21.1]}
22... Qh6 {[%clk 0:01:35.8]} 23. Rh4 {[%clk 0:00:17.3]} 23... Qg6 {[%clk
0:01:28.6]} 24. Rg4 {[%clk 0:00:17.8]} 24... Qh6 {[%clk 0:01:27]} 25. Rh4 {[%clk
0:00:11.9]} 25... Qg6 {[%clk 0:01:27.1]} 26. Rg4 {[%clk 0:00:12.1]} 26... Qh6
{[%clk 0:01:27.4]} 1/2-1/2

[Event "*** Titled Tuesday Blitz"]
[Site "Chess.com"]
[Date "2020.12.01"]
[Round "3"]
[White "arminmusovic"]
[Black "tk22h"]
[Result "1-0"]
[WhiteElo "2535"]
[BlackElo "2327"]
[TimeControl "180+1"]
[EndTime "10:26:33 PST"]
[Termination "arminmusovic won by resignation"]

1. e4 {[%clk 0:03:00.9]} 1... e5 {[%clk 0:02:59.5]} 2. Nf3 {[%clk 0:03:00.9]}
2... Nc6 {[%clk 0:02:59.7]} 3. Nc3 {[%clk 0:03:01.3]} 3... Nf6 {[%clk
0:02:59.3]} 4. Bb5 {[%clk 0:03:01.5]} 4... Bb4 {[%clk 0:02:58.5]} 5. O-O {[%clk
0:03:01.2]} 5... O-O {[%clk 0:02:57.7]} 6. d3 {[%clk 0:03:01.7]} 6... Bxc3
{[%clk 0:02:58]} 7. bxc3 {[%clk 0:03:02.6]} 7... d6 {[%clk 0:02:58.4]} 8. h3
{[%clk 0:03:02.3]} 8... Bd7 {[%clk 0:02:52.1]} 9. Re1 {[%clk 0:03:01.1]} 9...
Ne7 {[%clk 0:02:51.7]} 10. Rb1 {[%clk 0:02:57.2]} 10... Bxb5 {[%clk 0:02:50]}
11. Rxb5 {[%clk 0:02:58.1]} 11... b6 {[%clk 0:02:50.5]} 12. d4 {[%clk
0:02:55.4]} 12... Ng6 {[%clk 0:02:49.9]} 13. dxe5 {[%clk 0:02:45.2]} 13... dxe5
{[%clk 0:02:47.7]} 14. Qxd8 {[%clk 0:02:46.1]} 14... Raxd8 {[%clk 0:02:46.6]}
15. Nxe5 {[%clk 0:02:45.8]} 15... Nxe5 {[%clk 0:02:46.7]} 16. Rxe5 {[%clk
0:02:45.4]} 16... Rfe8 {[%clk 0:02:44.8]} 17. Rxe8+ {[%clk 0:02:44.9]} 17...
Rxe8 {[%clk 0:02:45.7]} 18. f3 {[%clk 0:02:41.8]} 18... h6 {[%clk 0:02:40.5]}
19. Be3 {[%clk 0:02:35]} 19... Re6 {[%clk 0:02:40.4]} 20. Rd1 {[%clk 0:02:26.9]}
20... Rc6 {[%clk 0:02:40]} 21. Rd8+ {[%clk 0:02:26.3]} 21... Kh7 {[%clk
0:02:39.6]} 22. Bd4 {[%clk 0:02:26.8]} 22... Kg6 {[%clk 0:02:36.6]} 23. Kf2
{[%clk 0:02:26.6]} 23... Rc4 {[%clk 0:02:35.6]} 24. Rc8 {[%clk 0:02:19.3]} 24...
Nh7 {[%clk 0:02:30.1]} 25. Ke3 {[%clk 0:02:13.9]} 25... c5 {[%clk 0:02:29.7]}
26. Kd3 {[%clk 0:02:03.2]} 26... Ra4 {[%clk 0:02:29.5]} 27. Be3 {[%clk
0:01:49.1]} 27... Nf6 {[%clk 0:02:24.3]} 28. Rc6 {[%clk 0:01:43.3]} 28... Kh7
{[%clk 0:02:23.2]} 29. g4 {[%clk 0:01:39.5]} 29... Nd7 {[%clk 0:02:22.6]} 30. f4
{[%clk 0:01:34.1]} 30... Nf6 {[%clk 0:02:22]} 31. e5 {[%clk 0:01:15.5]} 31...
Nd5 {[%clk 0:02:21.5]} 32. f5 {[%clk 0:01:10.9]} 32... Rxa2 {[%clk 0:02:13.9]}
33. Bd2 {[%clk 0:00:54.8]} 33... Ra4 {[%clk 0:02:05.1]} 34. c4 {[%clk
0:00:49.3]} 34... Nb4+ {[%clk 0:02:01]} 35. Bxb4 {[%clk 0:00:47.6]} 35... cxb4
{[%clk 0:02:01.2]} 36. Rc7 {[%clk 0:00:45.5]} 36... Kg8 {[%clk 0:02:00.2]} 37.
Rc8+ {[%clk 0:00:41.5]} 37... Kh7 {[%clk 0:01:59.6]} 38. e6 {[%clk 0:00:41.7]}
38... fxe6 {[%clk 0:01:59.6]} 39. fxe6 {[%clk 0:00:42.6]} 39... Ra3+ {[%clk
0:01:55.1]} 40. Kd4 {[%clk 0:00:36.6]} 40... Ra1 {[%clk 0:01:42.7]} 41. e7
{[%clk 0:00:33.6]} 41... Rd1+ {[%clk 0:01:42.6]} 42. Ke5 {[%clk 0:00:32.7]}
42... Re1+ {[%clk 0:01:42.6]} 43. Kd6 {[%clk 0:00:32]} 1-0

[Event "*** Titled Tuesday Blitz"]
[Site "Chess.com"]
[Date "2020.12.01"]
[Round "3"]
[White "GMSrinath"]
[Black "Ranindu2003"]
[Result "0-1"]
[WhiteElo "2816"]
[BlackElo "2608"]
[TimeControl "180+1"]
[EndTime "10:26:35 PST"]
[Termination "Ranindu2003 won by resignation"]

1. d4 {[%clk 0:03:00.9]} 1... Nf6 {[%clk 0:02:59.3]} 2. c4 {[%clk 0:03:00]} 2...
e6 {[%clk 0:02:59.8]} 3. g3 {[%clk 0:02:59.5]} 3... d5 {[%clk 0:02:59.5]} 4. Bg2
{[%clk 0:02:59.1]} 4... Be7 {[%clk 0:03:00]} 5. Nf3 {[%clk 0:02:58.8]} 5... O-O
{[%clk 0:03:00.4]} 6. O-O {[%clk 0:02:59.3]} 6... dxc4 {[%clk 0:03:00.6]} 7. Qc2
{[%clk 0:02:58.3]} 7... a6 {[%clk 0:02:59.8]} 8. a4 {[%clk 0:02:58.6]} 8... Nc6
{[%clk 0:02:59.9]} 9. Qxc4 {[%clk 0:02:57.1]} 9... Na5 {[%clk 0:03:00.2]} 10.
Qc2 {[%clk 0:02:53.7]} 10... b6 {[%clk 0:03:00.3]} 11. Ne5 {[%clk 0:02:51.7]}
11... Bb7 {[%clk 0:03:00.3]} 12. Bxb7 {[%clk 0:02:52]} 12... Nxb7 {[%clk
0:03:01.2]} 13. Nc6 {[%clk 0:02:52.9]} 13... Qe8 {[%clk 0:03:01.8]} 14. e4
{[%clk 0:02:24]} 14... Bc5 {[%clk 0:02:56.1]} 15. Ne5 {[%clk 0:01:44.1]} 15...
Bxd4 {[%clk 0:02:52.7]} 16. Nf3 {[%clk 0:01:45]} 16... c5 {[%clk 0:02:29.6]} 17.
Bg5 {[%clk 0:01:42.2]} 17... h6 {[%clk 0:02:19.7]} 18. Bxf6 {[%clk 0:01:30.5]}
18... Bxf6 {[%clk 0:02:20.6]} 19. e5 {[%clk 0:01:31.4]} 19... Be7 {[%clk
0:02:20.5]} 20. Nc3 {[%clk 0:01:32.3]} 20... Qc6 {[%clk 0:02:17.2]} 21. Nd2
{[%clk 0:01:31.9]} 21... Rfd8 {[%clk 0:02:12.7]} 22. Rad1 {[%clk 0:01:31.3]}
22... b5 {[%clk 0:01:59.1]} 23. axb5 {[%clk 0:01:27.4]} 23... axb5 {[%clk
0:02:00]} 24. Nce4 {[%clk 0:01:23.6]} 24... Rd5 {[%clk 0:01:55.2]} 25. f4 {[%clk
0:01:23.7]} 25... Rad8 {[%clk 0:01:53.3]} 26. Rde1 {[%clk 0:01:22.5]} 26... c4
{[%clk 0:01:46.9]} 27. Nf3 {[%clk 0:01:23]} 27... Nc5 {[%clk 0:01:38.7]} 28. f5
{[%clk 0:01:13.3]} 28... exf5 {[%clk 0:01:30.3]} 29. Nc3 {[%clk 0:01:04.8]}
29... Rd3 {[%clk 0:01:25.5]} 30. Qe2 {[%clk 0:01:03.4]} 30... Nb3 {[%clk
0:01:19.5]} 31. Nd1 {[%clk 0:00:51.4]} 31... Bc5+ {[%clk 0:01:14]} 32. Kg2
{[%clk 0:00:50.4]} 32... Rd2 {[%clk 0:01:07.8]} 0-1

[Event "*** Titled Tuesday Blitz"]
[Site "Chess.com"]
[Date "2020.12.01"]
[Round "3"]
[White "ural58"]
[Black "Adham_Fawzy"]
[Result "0-1"]
[WhiteElo "2445"]
[BlackElo "2834"]
[TimeControl "180+1"]
[EndTime "10:26:39 PST"]
[Termination "Adham_Fawzy won by resignation"]

1. e4 {[%clk 0:02:56.1]} 1... c5 {[%clk 0:02:59.7]} 2. b3 {[%clk 0:02:55.7]}
2... Nc6 {[%clk 0:02:59]} 3. Bb2 {[%clk 0:02:55.2]} 3... e5 {[%clk 0:02:59.6]}
4. f4 {[%clk 0:02:54.8]} 4... exf4 {[%clk 0:02:55]} 5. Qf3 {[%clk 0:02:54.5]}
5... Qh4+ {[%clk 0:02:42.4]} 6. g3 {[%clk 0:02:53.8]} 6... fxg3 {[%clk
0:02:40.3]} 7. hxg3 {[%clk 0:02:54.7]} 7... Qe7 {[%clk 0:02:30.1]} 8. Nc3 {[%clk
0:02:29]} 8... Nf6 {[%clk 0:02:30.1]} 9. O-O-O {[%clk 0:02:26.2]} 9... d6 {[%clk
0:02:30]} 10. Nd5 {[%clk 0:02:23]} 10... Nxd5 {[%clk 0:02:24.6]} 11. exd5 {[%clk
0:02:22.9]} 11... Ne5 {[%clk 0:02:25]} 12. Qf4 {[%clk 0:02:17.5]} 12... Bg4
{[%clk 0:02:14.6]} 13. Bb5+ {[%clk 0:02:16]} 13... Kd8 {[%clk 0:02:11.5]} 14.
Re1 {[%clk 0:02:14]} 14... Nd3+ {[%clk 0:02:09.4]} 15. cxd3 {[%clk 0:02:12]}
15... Qxe1+ {[%clk 0:02:09.7]} 16. Kc2 {[%clk 0:02:12.5]} 16... Qd1+ {[%clk
0:01:56.3]} 17. Kc3 {[%clk 0:02:12.5]} 17... Be7 {[%clk 0:01:56]} 18. d4 {[%clk
0:02:05.3]} 18... cxd4+ {[%clk 0:01:52.3]} 19. Kb4 {[%clk 0:02:02.3]} 19... a6
{[%clk 0:01:23.3]} 20. Bd3 {[%clk 0:01:52.1]} 20... b5 {[%clk 0:01:10.1]} 21.
Bxd4 {[%clk 0:01:45.7]} 21... a5+ {[%clk 0:01:07.4]} 22. Kxb5 {[%clk 0:01:44.6]}
22... Bd7+ {[%clk 0:01:04.2]} 23. Kb6 {[%clk 0:01:44.5]} 23... Qc1 {[%clk
0:00:40.6]} 24. Bc3 {[%clk 0:01:42.9]} 24... Qa3 {[%clk 0:00:38.7]} 25. Qc4
{[%clk 0:01:24.1]} 25... Rc8 {[%clk 0:00:37.3]} 26. Qd4 {[%clk 0:01:23.6]} 26...
Bf6 {[%clk 0:00:37.3]} 27. Qe3 {[%clk 0:01:17.6]} 27... Bxc3 {[%clk 0:00:33.9]}
28. dxc3 {[%clk 0:01:17.6]} 28... Rxc3 {[%clk 0:00:34.3]} 29. Ne2 {[%clk
0:01:17.7]} 29... Qb4+ {[%clk 0:00:33.9]} 0-1

[Event "*** Titled Tuesday Blitz"]
[Site "Chess.com"]
[Date "2020.12.01"]
[Round "3"]
[White "SergeyShtyka"]
[Black "German_Bazeev"]
[Result "0-1"]
[WhiteElo "2425"]
[BlackElo "2719"]
[TimeControl "180+1"]
[EndTime "10:26:39 PST"]
[Termination "German_Bazeev won by resignation"]

1. e4 {[%clk 0:02:57.3]} 1... c6 {[%clk 0:02:57.8]} 2. Nf3 {[%clk 0:02:57]} 2...
d5 {[%clk 0:02:57.9]} 3. Nc3 {[%clk 0:02:57.5]} 3... Bg4 {[%clk 0:02:57]} 4. h3
{[%clk 0:02:57.4]} 4... Bxf3 {[%clk 0:02:54.4]} 5. Qxf3 {[%clk 0:02:58.3]} 5...
e6 {[%clk 0:02:54.4]} 6. d3 {[%clk 0:02:58.3]} 6... a5 {[%clk 0:02:52]} 7. g3
{[%clk 0:02:53.2]} 7... Nd7 {[%clk 0:02:48]} 8. Bg2 {[%clk 0:02:52.2]} 8... Bc5
{[%clk 0:02:46.6]} 9. O-O {[%clk 0:02:50.9]} 9... Ne7 {[%clk 0:02:46.3]} 10. Qe2
{[%clk 0:02:45.4]} 10... O-O {[%clk 0:02:45.8]} 11. Kh2 {[%clk 0:02:37.6]} 11...
Qc7 {[%clk 0:02:33.4]} 12. f4 {[%clk 0:02:36.4]} 12... Rae8 {[%clk 0:02:32.8]}
13. e5 {[%clk 0:02:32.3]} 13... Nf5 {[%clk 0:02:30.3]} 14. Nd1 {[%clk
0:02:23.2]} 14... f6 {[%clk 0:02:28.1]} 15. exf6 {[%clk 0:02:20]} 15... Nd4
{[%clk 0:02:17.8]} 16. Qd2 {[%clk 0:02:10.9]} 16... Nxf6 {[%clk 0:02:15.1]} 17.
c3 {[%clk 0:02:09.8]} 17... Nf5 {[%clk 0:02:15.3]} 18. d4 {[%clk 0:02:07.7]}
18... Bd6 {[%clk 0:02:15.6]} 19. Nf2 {[%clk 0:02:02.3]} 19... g5 {[%clk
0:02:12.9]} 20. Nd3 {[%clk 0:01:57.1]} 20... Nxg3 {[%clk 0:01:48.1]} 21. Kxg3
{[%clk 0:01:49.6]} 21... gxf4+ {[%clk 0:01:47.4]} 22. Kf2 {[%clk 0:01:25.6]}
22... Ne4+ {[%clk 0:01:41.3]} 23. Bxe4 {[%clk 0:01:25.2]} 23... dxe4 {[%clk
0:01:42.2]} 24. Rg1+ {[%clk 0:01:23]} 24... Kh8 {[%clk 0:01:41.1]} 25. Qe2
{[%clk 0:01:15.3]} 25... exd3 {[%clk 0:01:35.5]} 26. Qxd3 {[%clk 0:01:15.2]}
26... e5 {[%clk 0:01:32.3]} 27. dxe5 {[%clk 0:00:38.9]} 27... Bc5+ {[%clk
0:01:32]} 28. Kf1 {[%clk 0:00:39]} 28... Bxg1 {[%clk 0:01:31]} 29. Kxg1 {[%clk
0:00:39.2]} 29... Qg7+ {[%clk 0:01:14.4]} 30. Kf1 {[%clk 0:00:38.1]} 30... f3
{[%clk 0:01:12.4]} 31. Be3 {[%clk 0:00:33.2]} 31... Qg2+ {[%clk 0:01:11.1]} 32.
Ke1 {[%clk 0:00:33.2]} 32... f2+ {[%clk 0:01:11.4]} 0-1